Workbook

Sheet Informations à fournir
A1: Simulateur UNISOC - Effets du tax shift pour un niveau salarial donné - Employés
B2: Il se peut que ce fichier soit mis à jour selon les dernières informations en notre possession, la version que vous consultez a été mise en ligne le 26 février 2016
B3: L'objectif de cet outil est de vous permettre de calculer l'impact du tax shift pour un niveau de salaire donné.
B4: Cet outil ne prend en considération que l'impact du tax shift sur le taux de cotisation patronal de base (y compris la cotisation de modération salariale), la réduction structurelle et le forfait Maribel Social. Concrètement, le résultat dans le fichier « Feuille de résultats » vous montre la cotisation patronale de base majorée de la cotisation modération salariale, diminuée de la réduction structurelle telle que renforcée dans le cadre du tax shift, tout en tenant compte des évolutions des forfaits du Maribel social, ce résultat est disponible pour l'ensemble des catégories de la réduction structurelle.
B5: Les cotisations patronales qui s'additionnent au pourcentage de base, à la cotisation de modération salariale (fixe, variable et 0,40) ne sont pas prises en considération. Ainsi, les cotisations aux fonds de fermeture, les cotisations destinées au financement du fonds amiante, les cotisations spéciales accidents de travail,... ne sont pas reprises dans ce simulateur (liste non-exhaustive).
B6: Notez cependant, que celles-ci ne seront pas affectées par le taxshift et continueront donc à s'additionner aux taux présentés dans ce simulateur.
B7: De la même façon, ce simulateur ne prend pas en considération les réductions groupes-cible, qui relèvent principalement depuis la sixième réforme de l'Etat de la compétence des Régions.
B9: Informations à fournir pour effectuer la simulation:
B11: Précision importante: Les paramètres sur lesquels se basent ce simulateur sont définis dans les instructions administratives de l’ONSS. Nous rappelons un certain nombre de ces définitions dans le deuxième onglet de ce fichier (vous pouvez y accéder rapidement en cliquant sur « Définition » à la suite de chaque concept utilisé. Pour mieux comprendre le mécanisme de la réduction structurelle, vous pouvez également vous référer au dossier de l'Unisoc relatif aux réductions de charges. Si vous souhaitez simplifier la simulation afin d’estimer théoriquement l’effet pour un travailleurs à temps-plein pour un salaire donné, il vous suffit de laisser la valeur « 1 » pour la fraction de prestation µ et d’encoder un salaire théorique qui soit le même, à la fois pour le salaire mensuel W et le salaire mensuel de référence S.
B17: La fraction de prestation trimestrielle: µ (glob), arrondie à la deuxième décimale | C17: 1 | D17: Définition
B18: Salaire mensuel W | C18: 2000 | D18: Définition
B19: Salaire mensuel de référence S | C19: 2000 | D19: Définition

Sheet Définition des concepts
B3: Définitions des concepts
B6: La fraction de prestation: µ (glob)
B7: A l’aide de la fraction de prestation, le montant de la réduction ONSS (structurelle et/ou groupe cible) est proportionné en fonction du nombre effectif de jours (ou d’heures) de travail presté(e)s et des jours (ou heures) y assimilé(e)s. La fraction de prestation µ est déterminée par ligne d’occupation pour laquelle la réduction est calculée. Une distinction est opérée selon que l’occupation est déclarée en jours et/ou en heures. Afin de calculer la fraction de prestation, on divise le nombre de jours ou d’heures de travail (effectif(ve)s et assimilé(e)s par trimestre par le produit de la multiplication par 13 (nombre de semaines dans un trimestre) du nombre de jours de travail par semaine du régime de travail ou, le cas échéant, du nombre moyen d’heures par semaine d’une personne de référence. Pour plus de détails techniques, nous reprenons ci-dessous les informations disponibles dans les instructions administratives de l’ONSS : On doit distinguer les occupations déclarées uniquement en jours et celles déclarées en jours et en heures : - déclarées en jours: µ = X / (13 x D) X représentant le nombre de jours de travail et les jours de chômage temporaire pour cause d'intempéries (codes prestation 1, 2, 3, 4, 5, 12, 20, et 72); les jours couverts par une indemnité de rupture ne sont pas pris en compte pour le calcul de X; D représentant le nombre de jours par semaine dans le régime de travail; - déclarées en jours et en heures: µ = Z / (13xU) Z représentant le nombre d'heures de travail et les heures correspondant aux jours de chômage temporaire pour cause d'intempérie (codes prestation 1, 2, 3, 4, 5, 12, 20 et 72); les heures qui correspondent à des jours couverts par une indemnité de rupture ne sont pas pris en compte pour le calcul de Z; U représentant le nombre moyen d'heures de travail par semaine du travailleur de référence. µ est théoriquement arrondi à la deuxième décimale, 0,005 est arrondi vers le haut. Sur base de la fraction de prestation µ, les montants de réduction sont proportionnalisés. La somme de tous les ‘µ’ donne la prestation totale du travailleur µ (glob). Sur base du µ (glob) on vérifie si le travailleur a suffisamment de prestations pendant le trimestre pour ouvrir le droit à une réduction de charges.
B8: Revenir aux informations à fournir
B11: Masse salariale W
B12: Le salaire à prendre en compte est la masse salariale qui est déclarée à 100 % tous les trimestres par ligne d’occupation (c’est-à-dire le salaire mensuel brut, sans déduction des cotisations de sécurité sociale dues par le travailleur). Pour simplifier l’usage de ce simulateur, la masse salariale W à encoder dans ce simulateur est une masse salariale mensuelle, nous nous chargeons par la suite de la convertir en masse salariale trimestrielle pour produire les résultats disponibles dans la ‘Feuille de résultats’. Certaines indemnités ne sont pas prises en considération pour le calcul du salaire W : - les indemnités qui sont payées suite à une rupture du contrat de travail et dans la mesure où elles sont exprimées en durée du travail ; - les primes de fin d’année qui sont payées par des tiers ; - les indemnités pour les heures qui ne sont pas des heures de travail ; - les indemnités qui ne concernent que le pécule de vacances de départ payé par un employeur à son (ex-)travailleur. Pour plus de détails techniques, nous reprenons ci-dessous les informations disponibles dans les instructions administratives de l’ONSS : W représente la masse salariale déclarée trimestriellement par ligne d’occupation (à 100 %) à l’exception des indemnités payées lors d’une interruption irrégulière du contrat de travail, pour autant que celles-ci soient exprimées en temps de travail, des primes de fin d’année payée par des tiers, des indemnités pour les heures qui ne constituent pas du temps de travail et du pécule simple de sortie payé par un employeur à son (ex-) travailleur. Il s’agit en d’autres termes des codes rémunération 1, 2, 4, 5, 8 et 12. La réduction ne peut donc pas être appliquée sur une ligne d’occupation avec les codes rémunération 3 ou 9 (indemnité de rupture) et sur les montants déclarés sous les codes rémunération 7 et 11. Pour les travailleurs qui reçoivent une prime de fin d'année par l'intermédiaire d'un tiers payant (par exemple un fonds de sécurité d'existence), le salaire trimestriel (W) est augmenté de 25 % au 4ème trimestre. Par dérogation, l'augmentation n'est que de 15 % pour les agences d'intérim reconnues et ceci pendant le 1er trimestre. A la suite de cette augmentation, W est arrondi à l’eurocent où € 0,005 est arrondi à € 0,01.
B13: Revenir aux informations à fournir
B15: Salaire de référence S
B16: Par salaire trimestriel de référence, on entend le salaire trimestriel brut en cas de prestations de travail complètes. En ce qui concerne les travailleurs qui n’ont pas travaillé à temps plein au cours de ce trimestre, leur salaire est converti comme si tel avait été le cas. Nous remarquons que cette correction vers une occupation à temps plein ne se fait pas pour le calcul de la borne haut salaire. Pour simplifier l’usage de ce simulateur, le salaire de référence S à encoder dans ce simulateur est un salaire de référence mensuel, nous nous chargeons par la suite de le convertir en salaire de référence trimestriel pour produire les résultats disponibles dans la ‘Feuille de résultats’. La conversion vers un salaire temps plein (fictif) a lieu pour éviter de tomber trop facilement sous cette borne bas salaire et donc de bénéficier de la réduction. Une personne qui est, par exemple, occupée à mi-temps (et qui est donc payée proportionnellement) pourrait bénéficier de cette réduction supplémentaire pour un salaire qui n'est pas nécessairement « bas ». Le calcul du salaire trimestriel de référence s’effectue comme suit : 1. Conversion du salaire réel sur une base trimestrielle vers un salaire temps plein sur une base hebdomadaire : - le salaire tel qu’il est déclaré tous les trimestres est divisé par le nombre de jours ou d’heures de travail effectives et assimilées ; - puis, multiplié par le nombre de jours, le cas échéant, le nombre moyen d’heures, d’un travailleur de référence par semaine. 2. Conversion du salaire temps plein sur une base hebdomadaire vers un salaire temps plein sur une base trimestrielle : le salaire temps plein sur une base hebdomadaire est multiplié par 13 (car un trimestre compte 13 semaines). Attention ! Il ne faut pas tenir compte d’une série d’indemnités pour le calcul du salaire trimestriel de référence S.
B17: Pour plus de détails techniques, nous reprenons ci-dessous les informations disponibles dans les instructions administratives de l’ONSS : Le salaire trimestriel de référence S, ou la conversion de la rémunération réelle en une masse salariale de référence est calculé de la manière suivante par ligne d'occupation: - pour l'occupation déclarée uniquement en jours : S = W x (13 x D/J) J étant égal à X (voir définition dans la partie fraction de prestation) sans les vacances annuelles pour ouvriers, les jours de vacances non payés par l'employeur octroyés par CCT rendue obligatoire et les jours de repos compensatoire accordés dans la construction ainsi que les journées d'interruption de travail pour cause d'intempérie, c'est-à-dire les codes prestations 1, 3, 4, 5, et 20; D représentant le nombre de jours par semaine dans le régime de travail. - pour l'occupation déclarée en heures et en jours cela devient : S = W x (13 x U/H) H étant égal à Z (voir définition dans la partie fraction de prestation) sans les heures se rapportant aux jours de vacances légaux pour ouvriers, les heures correspondant aux jours de vacances non payés par l'employeur accordés suite à une CCT rendue obligatoire et avec les jours de repos compensatoire dans le secteur de la construction et les heures correspondant aux journées d'interruption de travail pour cause d'intempéries; il s'agit en fait des codes prestations 1, 3, 4, 5, et 20; U étant égal au nombre moyen d'heures par semaine du travailleur de référence. (13 x D/J) et (13 x U/H) est arrondi au deuxième chiffre après la virgule, 0,005 est arrondi vers le haut. S est arrondi à l'eurocent, 0,005 EUR est arrondi à 0,01 EUR. Pour les travailleurs occupés par un groupe limité d’employeurs qui, avant le 1er octobre 2001, ont instauré une réduction du temps de travail ou la semaine de quatre jours avec octroi d’un montant visant à compenser en partie la perte de rémunération (code rémunération 5), S est forfaitairement réduit de 241,70 EUR par trimestre. Il s’agit ici des employeurs qui entraient en considération pour une réduction groupe-cible sur base des articles 367, 369 ou 370 de la loi-programme du 24 décembre 2002 (anciens codes réduction 1331, 1333 et 1341 qui ne sont plus d'application).
B18: Revenir aux informations à fournir

Sheet Feuille de calculs (hidden)
C2: Facteur fixe de multiplication: ßs | D2: =IF(AND(('Informations à fournir'!C17<0.55),('Informations à fournir'!C17>=0.275)),1.18,IF(AND(('Informations à fournir'!C17>=0.55),('Informations à fournir'!C17<0.8)),1.18+(('Informations à fournir'!C17-0.55)*0.28),IF('Informations à fournir'!C17>=0.8,1/'Informations à fournir'!C17, 0))) -> 1 | E2: Définition | G2: CAT 3 ßs | H2: =IF(('Informations à fournir'!C17<0.55),1.18,IF(AND(('Informations à fournir'!C17>=0.55),('Informations à fournir'!C17<0.8)),1.18+(('Informations à fournir'!C17-0.55)*0.28),IF('Informations à fournir'!C17>=0.8,1/'Informations à fournir'!C17,0))) -> 1 | I2: Définition
C3: Régime de travail en % pour forfait maribel | D3: ='Informations à fournir'!C17*100 -> 100 | E3: Définition
C4: Salaire trimestriel de référence S | D4: ='Informations à fournir'!C19*3 -> 6000 | E4: Définition
C8: Catégorie 1 | K8: Catégorie 1 - Sans Maribel | S8: Catégorie 2 - Forfait général Maribel Social | AA8: Catégorie 2 - Forfait particulier Maribel Social | AI8: Catégorie 3 - Travailleurs valides | AQ8: Catégorie 3 - Travailleurs moins-valides
C9: Situation en 2015 | D9: 1er janvier 2016 | E9: 1er avril 2016 | F9: 1er janvier 2017 | G9: 1er janvier 2018 | H9: 1er janvier 2019 | I9: 1er janvier 2020 | K9: Situation en 2015 | L9: 1er janvier 2016 | M9: 1er avril 2016 | N9: 1er janvier 2017 | O9: 1er janvier 2018 | P9: 1er janvier 2019 | Q9: 1er janvier 2020 | S9: Situation en 2015 | T9: 1er janvier 2016 | U9: 1er avril 2016 | V9: 1er janvier 2017 | W9: 1er janvier 2018 | X9: 1er janvier 2019 | Y9: 1er janvier 2020 | AA9: Situation en 2015 | AB9: 1er janvier 2016 | AC9: 1er avril 2016 | AD9: 1er janvier 2017 | AE9: 1er janvier 2018 | AF9: 1er janvier 2019 | AG9: 1er janvier 2020 | AI9: Situation en 2015 | AJ9: 1er janvier 2016 | AK9: 1er avril 2016 | AL9: 1er janvier 2017 | AM9: 1er janvier 2018 | AN9: 1er janvier 2019 | AO9: 1er janvier 2020 | AQ9: Situation en 2015 | AR9: 1er janvier 2016 | AS9: 1er avril 2016 | AT9: 1er janvier 2017 | AU9: 1er janvier 2018 | AV9: 1er janvier 2019 | AW9: 1er janvier 2020
A11: Salaire Mensuel | C11: ='Informations à fournir'!$C$18 -> 2000 | D11: ='Informations à fournir'!$C$18 -> 2000 | E11: ='Informations à fournir'!$C$18 -> 2000 | F11: ='Informations à fournir'!$C$18 -> 2000 | G11: ='Informations à fournir'!$C$18 -> 2000 | H11: ='Informations à fournir'!$C$18 -> 2000 | I11: ='Informations à fournir'!$C$18 -> 2000 | K11: ='Informations à fournir'!$C$18 -> 2000 | L11: ='Informations à fournir'!$C$18 -> 2000 | M11: ='Informations à fournir'!$C$18 -> 2000 | N11: ='Informations à fournir'!$C$18 -> 2000 | O11: ='Informations à fournir'!$C$18 -> 2000 | P11: ='Informations à fournir'!$C$18 -> 2000 | Q11: ='Informations à fournir'!$C$18 -> 2000 | S11: ='Informations à fournir'!$C$18 -> 2000 | T11: ='Informations à fournir'!$C$18 -> 2000 | U11: ='Informations à fournir'!$C$18 -> 2000 | V11: ='Informations à fournir'!$C$18 -> 2000 | W11: ='Informations à fournir'!$C$18 -> 2000 | X11: ='Informations à fournir'!$C$18 -> 2000 | Y11: ='Informations à fournir'!$C$18 -> 2000 | AA11: ='Informations à fournir'!$C$18 -> 2000 | AB11: ='Informations à fournir'!$C$18 -> 2000 | AC11: ='Informations à fournir'!$C$18 -> 2000 | AD11: ='Informations à fournir'!$C$18 -> 2000 | AE11: ='Informations à fournir'!$C$18 -> 2000 | AF11: ='Informations à fournir'!$C$18 -> 2000 | AG11: ='Informations à fournir'!$C$18 -> 2000 | AI11: ='Informations à fournir'!$C$18 -> 2000 | AJ11: ='Informations à fournir'!$C$18 -> 2000 | AK11: ='Informations à fournir'!$C$18 -> 2000 | AL11: ='Informations à fournir'!$C$18 -> 2000 | AM11: ='Informations à fournir'!$C$18 -> 2000 | AN11: ='Informations à fournir'!$C$18 -> 2000 | AO11: ='Informations à fournir'!$C$18 -> 2000 | AQ11: ='Informations à fournir'!$C$18 -> 2000 | AR11: ='Informations à fournir'!$C$18 -> 2000 | AS11: ='Informations à fournir'!$C$18 -> 2000 | AT11: ='Informations à fournir'!$C$18 -> 2000 | AU11: ='Informations à fournir'!$C$18 -> 2000 | AV11: ='Informations à fournir'!$C$18 -> 2000 | AW11: ='Informations à fournir'!$C$18 -> 2000
A12: Salaire Trimestriel | C12: =C11*3 -> 6000 | D12: =D11*3 -> 6000 | E12: 6000 | F12: 6000 | G12: 6000 | H12: 6000 | I12: 6000 | K12: =K11*3 -> 6000 | L12: =L11*3 -> 6000 | M12: 6000 | N12: 6000 | O12: 6000 | P12: 6000 | Q12: 6000 | S12: 6000 | T12: 6000 | U12: 6000 | V12: 6000 | W12: 6000 | X12: 6000 | Y12: 6000 | AA12: 6000 | AB12: 6000 | AC12: 6000 | AD12: 6000 | AE12: 6000 | AF12: 6000 | AG12: 6000 | AI12: =AI11*3 -> 6000 | AJ12: 6000 | AK12: 6000 | AL12: 6000 | AM12: 6000 | AN12: 6000 | AO12: 6000 | AQ12: 6000 | AR12: 6000 | AS12: 6000 | AT12: 6000 | AU12: 6000 | AV12: 6000 | AW12: 6000
A13: Cotisation patronale de base | C13: =C12*32.4/100 -> 1944 | D13: =C13 -> 1944 | E13: =E12*30/100 -> 1800 | F13: =F12*30/100 -> 1800 | G13: =G12*25/100 -> 1500 | H13: =H12*25/100 -> 1500 | I13: =H13 -> 1500 | K13: =K12*32.4/100 -> 1944 | L13: =K13 -> 1944 | M13: =M12*30/100 -> 1800 | N13: =N12*30/100 -> 1800 | O13: =O12*25/100 -> 1500 | P13: =P12*25/100 -> 1500 | Q13: =P13 -> 1500 | S13: =S12*32.4/100 -> 1944 | T13: 1944 | U13: 1944 | V13: 1944 | W13: 1944 | X13: 1944 | Y13: 1944 | AA13: =AA12*32.4/100 -> 1944 | AB13: 1944 | AC13: 1944 | AD13: 1944 | AE13: 1944 | AF13: 1944 | AG13: 1944 | AI13: =AI12*32.4/100 -> 1944 | AJ13: =AI13 -> 1944 | AK13: =AK12*30/100 -> 1800 | AL13: =AL12*30/100 -> 1800 | AM13: =AM12*25/100 -> 1500 | AN13: =AN12*25/100 -> 1500 | AO13: =AN13 -> 1500 | AQ13: =AQ12*24.92/100 -> 1495.2 | AR13: =AR12*24.92/100 -> 1495.2 | AS13: =AS12*22.65/100 -> 1359 | AT13: =AT12*22.65/100 -> 1359 | AU13: =AU12*19.88/100 -> 1192.8 | AV13: =AV12*19.88/100 -> 1192.8 | AW13: =AW12*19.88/100 -> 1192.8
A14: Cotisation patronale brute disponible | C14: =IF('Feuille de calculs'!$D$3>=50,MAX((C13-395.45),0),MAX(C13,0)) -> 1548.55 | D14: =IF('Feuille de calculs'!$D$3>=50,MAX((D13-409.37),0),MAX(D13,0)) -> 1534.63 | E14: =IF('Feuille de calculs'!$D$3>=50,MAX((E13-409.37),0),MAX(E13,0)) -> 1390.63 | F14: =IF('Feuille de calculs'!$D$3>=50,MAX((F13-409.37),0),MAX(F13,0)) -> 1390.63 | G14: =IF('Feuille de calculs'!$D$3>=50,MAX((G13-409.37),0),MAX(G13,0)) -> 1090.63 | H14: =IF('Feuille de calculs'!$D$3>=50,MAX((H13-409.37),0),MAX(H13,0)) -> 1090.63 | I14: =IF('Feuille de calculs'!$D$3>=50,MAX((I13-409.37),0),MAX(I13,0)) -> 1090.63 | K14: =K13 -> 1944 | L14: =L13 -> 1944 | M14: 1800 | N14: 1800 | O14: 1500 | P14: 1500 | Q14: 1500 | S14: =IF('Feuille de calculs'!$D$3>=50,MAX((S13-395.45),0),MAX(S13,0)) -> 1548.55 | T14: =IF('Feuille de calculs'!$D$3>=50,MAX((T13-409.37),0),MAX(T13,0)) -> 1534.63 | U14: =IF('Feuille de calculs'!$D$3>=50,MAX((U13-443.86),0),MAX(U13,0)) -> 1500.14 | V14: =IF('Feuille de calculs'!$D$3>=50,MAX((V13-443.86),0),MAX(V13,0)) -> 1500.14 | W14: =IF('Feuille de calculs'!$D$3>=50,MAX((W13-465.29),0),MAX(W13,0)) -> 1478.71 | X14: =IF('Feuille de calculs'!$D$3>=50,MAX((X13-482.67),0),MAX(X13,0)) -> 1461.33 | Y14: =IF('Feuille de calculs'!$D$3>=50,MAX((Y13-504.1),0),MAX(Y13,0)) -> 1439.9 | AA14: =IF('Feuille de calculs'!$D$3>=50,MAX((AA13-395.45-3.38),0),MAX(AA13,0)) -> 1545.17 | AB14: =IF('Feuille de calculs'!$D$3>=50,MAX((AB13-409.37-3.38),0),MAX(AB13,0)) -> 1531.25 | AC14: =IF('Feuille de calculs'!$D$3>=50,MAX((AC13-443.86-3.38),0),MAX(AC13,0)) -> 1496.76 | AD14: =IF('Feuille de calculs'!$D$3>=50,MAX((AD13-443.86-3.38),0),MAX(AD13,0)) -> 1496.76 | AE14: =IF('Feuille de calculs'!$D$3>=50,MAX((AE13-465.29-3.38),0),MAX(AE13,0)) -> 1475.33 | AF14: =IF('Feuille de calculs'!$D$3>=50,MAX((AF13-482.67-3.38),0),MAX(AF13,0)) -> 1457.95 | AG14: =IF('Feuille de calculs'!$D$3>=50,MAX((AG13-504.1-3.38),0),MAX(AG13,0)) -> 1436.52 | AI14: =AI13 -> 1944 | AJ14: =AJ13 -> 1944 | AK14: 1800 | AL14: 1800 | AM14: 1500 | AN14: 1500 | AO14: 1500 | AQ14: =AQ13 -> 1495.2 | AR14: 1495.2 | AS14: 1359 | AT14: 1359 | AU14: 1192.8 | AV14: 1192.8 | AW14: 1192.8
A15: Réduction structurelle brute | C15: =IF('Feuille de calculs'!$D$4<=5560.49,462.6+(0.162*(5560.49-'Feuille de calculs'!D4)),IF(C12>=13401.07,462.6+(0.06*(C12-13401.07)),462.6)) -> 462.6 | D15: =IF('Feuille de calculs'!$D$4<=5560.49,462.6+(0.162*(5560.49-'Feuille de calculs'!$D$4)),IF(D12>=13401.07,462.6+(0.06*(D12-13401.07)),462.6)) -> 462.6 | E15: =IF('Feuille de calculs'!$D$4<=6900,438+(0.1369*(6900-'Feuille de calculs'!$D$4)),IF(E12>=13401.07,438+(0.06*(E12-13401.07)),438)) -> 561.21 | F15: =IF('Feuille de calculs'!$D$4<=6900,438+(0.1369*(6900-'Feuille de calculs'!$D$4)),IF(F12>=13401.07,438+(0.06*(F12-13401.07)),438)) -> 561.21 | G15: =IF('Feuille de calculs'!$D$4<=8850,0+(0.128*(8850-'Feuille de calculs'!$D$4)),0) -> 364.8 | H15: =IF('Feuille de calculs'!$D$4<=9035,0+(0.14*(9035-'Feuille de calculs'!$D$4)),0) -> 424.9 | I15: =IF('Feuille de calculs'!$D$4<=9035,0+(0.14*(9035-'Feuille de calculs'!$D$4)),0) -> 424.9 | K15: =IF('Feuille de calculs'!$D$4<=5560.49,462.6+(0.162*(5560.49-'Feuille de calculs'!$D$4)),IF(K12>=13401.07,462.6+(0.06*(K12-13401.07)),462.6)) -> 462.6 | L15: =IF('Feuille de calculs'!$D$4<=5560.49,462.6+(0.162*(5560.49-'Feuille de calculs'!$D$4)),IF(L12>=13401.07,462.6+(0.06*(L12-13401.07)),462.6)) -> 462.6 | M15: =IF('Feuille de calculs'!$D$4<=6900,438+(0.1369*(6900-'Feuille de calculs'!$D$4)),IF(M12>=13401.07,438+(0.06*(M12-13401.07)),438)) -> 561.21 | N15: =IF('Feuille de calculs'!$D$4<=6900,438+(0.1369*(6900-'Feuille de calculs'!$D$4)),IF(N12>=13401.07,438+(0.06*(N12-13401.07)),438)) -> 561.21 | O15: =IF('Feuille de calculs'!$D$4<=8850,0+(0.128*(8850-'Feuille de calculs'!$D$4)),0) -> 364.8 | P15: =IF('Feuille de calculs'!$D$4<=9035,0+(0.14*(9035-'Feuille de calculs'!$D$4)),0) -> 424.9 | Q15: =IF('Feuille de calculs'!$D$4<=9035,0+(0.14*(9035-'Feuille de calculs'!$D$4)),0) -> 424.9 | S15: =IF('Feuille de calculs'!$D$4<=6150,0+(0.2557*(6150-'Feuille de calculs'!$D$4)),IF(S12>=12484.8,0+(0.06*(S12-12484.8)),0)) -> 38.355 | T15: =IF('Feuille de calculs'!$D$4<=6150,0+(0.2557*(6150-'Feuille de calculs'!$D$4)),IF(T12>=12484.8,0+(0.06*(T12-12484.8)),0)) -> 38.355 | U15: =IF('Feuille de calculs'!$D$4<=7110,24+(0.2557*(7110-'Feuille de calculs'!$D$4)),IF(U12>=12484.8,24+(0.06*(U12-12484.8)),24)) -> 307.827 | V15: =IF('Feuille de calculs'!$D$4<=7110,24+(0.2557*(7110-'Feuille de calculs'!$D$4)),IF(V12>=12484.8,24+(0.06*(V12-12484.8)),24)) -> 307.827 | W15: =IF('Feuille de calculs'!$D$4<=7218,49+(0.2557*(7218-'Feuille de calculs'!$D$4)),IF(W12>=12484.8,49+(0.06*(W12-12484.8)),49)) -> 360.4426 | X15: =IF('Feuille de calculs'!$D$4<=7590,49+(0.2557*(7590-'Feuille de calculs'!$D$4)),IF(X12>=12484.8,49+(0.06*(X12-12484.8)),49)) -> 455.563 | Y15: =IF('Feuille de calculs'!$D$4<=7590,79+(0.2557*(7590-'Feuille de calculs'!$D$4)),IF(Y12>=12484.8,79+(0.06*(Y12-12484.8)),79)) -> 485.563 | AA15: =IF('Feuille de calculs'!$D$4<=6150,0+(0.2557*(6150-'Feuille de calculs'!$D$4)),IF(AA12>=12484.8,0+(0.06*(AA12-12484.8)),0)) -> 38.355 | AB15: =IF('Feuille de calculs'!$D$4<=6150,0+(0.2557*(6150-'Feuille de calculs'!$D$4)),IF(AB12>=12484.8,0+(0.06*(AB12-12484.8)),0)) -> 38.355 | AC15: =IF('Feuille de calculs'!$D$4<=7110,24+(0.2557*(7110-'Feuille de calculs'!$D$4)),IF(AC12>=12484.8,24+(0.06*(AC12-12484.8)),24)) -> 307.827 | AD15: =IF('Feuille de calculs'!$D$4<=7110,24+(0.2557*(7110-'Feuille de calculs'!$D$4)),IF(AD12>=12484.8,24+(0.06*(AD12-12484.8)),24)) -> 307.827 | AE15: =IF('Feuille de calculs'!$D$4<=7218,49+(0.2557*(7218-'Feuille de calculs'!$D$4)),IF(AE12>=12484.8,49+(0.06*(AE12-12484.8)),49)) -> 360.4426 | AF15: =IF('Feuille de calculs'!$D$4<=7590,49+(0.2557*(7590-'Feuille de calculs'!$D$4)),IF(AF12>=12484.8,49+(0.06*(AF12-12484.8)),49)) -> 455.563 | AG15: =IF('Feuille de calculs'!$D$4<=7590,79+(0.2557*(7590-'Feuille de calculs'!$D$4)),IF(AG12>=12484.8,79+(0.06*(AG12-12484.8)),79)) -> 485.563 | AI15: =IF('Feuille de calculs'!$D$4<=7225,471+(0.1785*(7225-'Feuille de calculs'!$D$4)),IF(AI12>=12484.8,471+(0.06*(AI12-12484.8)),471)) -> 689.6625 | AJ15: =IF('Feuille de calculs'!$D$4<=7225,471+(0.1785*(7225-'Feuille de calculs'!$D$4)),IF(AJ12>=12484.8,471+(0.06*(AJ12-12484.8)),471)) -> 689.6625 | AK15: =IF('Feuille de calculs'!$D$4<=7500,438+(0.1369*(7500-'Feuille de calculs'!$D$4)),IF(AK12>=12484.8,438+(0.06*(AK12-12484.8)),438)) -> 643.35 | AL15: =IF('Feuille de calculs'!$D$4<=7500,438+(0.1369*(7500-'Feuille de calculs'!$D$4)),IF(AL12>=12484.8,438+(0.06*(AL12-12484.8)),438)) -> 643.35 | AM15: =IF('Feuille de calculs'!$D$4<=9450,0+(0.128*(9450-'Feuille de calculs'!$D$4)),0) -> 441.6 | AN15: =IF('Feuille de calculs'!$D$4<=9635,0+(0.14*(9635-'Feuille de calculs'!$D$4)),0) -> 508.9 | AO15: =IF('Feuille de calculs'!$D$4<=9635,0+(0.14*(9635-'Feuille de calculs'!$D$4)),0) -> 508.9 | AQ15: =IF('Feuille de calculs'!$D$4<=7225,471+(0.1785*(7225-'Feuille de calculs'!$D$4)),IF(AQ12>=12484.8,471+(0.06*(AQ12-12484.8)),471)) -> 689.6625 | AR15: =IF('Feuille de calculs'!$D$4<=7225,471+(0.1785*(7225-'Feuille de calculs'!$D$4)),IF(AR12>=12484.8,471+(0.06*(AR12-12484.8)),471)) -> 689.6625 | AS15: =IF('Feuille de calculs'!$D$4<=8185,420+(0.1785*(8185-'Feuille de calculs'!$D$4)),IF(AS12>=12484.8,420+(0.06*(AS12-12484.8)),420)) -> 810.0225 | AT15: =IF('Feuille de calculs'!$D$4<=8185,420+(0.1785*(8185-'Feuille de calculs'!$D$4)),IF(AT12>=12484.8,420+(0.06*(AT12-12484.8)),420)) -> 810.0225 | AU15: =IF('Feuille de calculs'!$D$4<=8850,260+(0.1785*(8850-'Feuille de calculs'!$D$4)),260) -> 768.725 | AV15: =IF('Feuille de calculs'!$D$4<=9035,375+(0.1785*(9035-'Feuille de calculs'!$D$4)),375) -> 916.7475 | AW15: =IF('Feuille de calculs'!$D$4<=9035,375+(0.1785*(9035-'Feuille de calculs'!$D$4)),375) -> 916.7475
A16: Inclusion fraction de prestation | C16: =C15*'Feuille de calculs'!$D$2*'Informations à fournir'!$C$17 -> 462.6 | D16: =D15*'Feuille de calculs'!$D$2*'Informations à fournir'!$C$17 -> 462.6 | E16: =E15*'Feuille de calculs'!$D$2*'Informations à fournir'!$C$17 -> 561.21 | F16: =F15*'Feuille de calculs'!$D$2*'Informations à fournir'!$C$17 -> 561.21 | G16: =G15*'Feuille de calculs'!$D$2*'Informations à fournir'!$C$17 -> 364.8 | H16: =H15*'Feuille de calculs'!$D$2*'Informations à fournir'!$C$17 -> 424.9 | I16: =I15*'Feuille de calculs'!$D$2*'Informations à fournir'!$C$17 -> 424.9 | K16: =K15*'Feuille de calculs'!$D$2*'Informations à fournir'!$C$17 -> 462.6 | L16: =L15*'Feuille de calculs'!$D$2*'Informations à fournir'!$C$17 -> 462.6 | M16: =M15*'Feuille de calculs'!$D$2*'Informations à fournir'!$C$17 -> 561.21 | N16: =N15*'Feuille de calculs'!$D$2*'Informations à fournir'!$C$17 -> 561.21 | O16: =O15*'Feuille de calculs'!$D$2*'Informations à fournir'!$C$17 -> 364.8 | P16: =P15*'Feuille de calculs'!$D$2*'Informations à fournir'!$C$17 -> 424.9 | Q16: =Q15*'Feuille de calculs'!$D$2*'Informations à fournir'!$C$17 -> 424.9 | S16: =S15*'Feuille de calculs'!$D$2*'Informations à fournir'!$C$17 -> 38.355 | T16: =T15*'Feuille de calculs'!$D$2*'Informations à fournir'!$C$17 -> 38.355 | U16: =U15*'Feuille de calculs'!$D$2*'Informations à fournir'!$C$17 -> 307.827 | V16: =V15*'Feuille de calculs'!$D$2*'Informations à fournir'!$C$17 -> 307.827 | W16: =W15*'Feuille de calculs'!$D$2*'Informations à fournir'!$C$17 -> 360.4426 | X16: =X15*'Feuille de calculs'!$D$2*'Informations à fournir'!$C$17 -> 455.563 | Y16: =Y15*'Feuille de calculs'!$D$2*'Informations à fournir'!$C$17 -> 485.563 | AA16: =AA15*'Feuille de calculs'!$D$2*'Informations à fournir'!$C$17 -> 38.355 | AB16: =AB15*'Feuille de calculs'!$D$2*'Informations à fournir'!$C$17 -> 38.355 | AC16: =AC15*'Feuille de calculs'!$D$2*'Informations à fournir'!$C$17 -> 307.827 | AD16: =AD15*'Feuille de calculs'!$D$2*'Informations à fournir'!$C$17 -> 307.827 | AE16: =AE15*'Feuille de calculs'!$D$2*'Informations à fournir'!$C$17 -> 360.4426 | AF16: =AF15*'Feuille de calculs'!$D$2*'Informations à fournir'!$C$17 -> 455.563 | AG16: =AG15*'Feuille de calculs'!$D$2*'Informations à fournir'!$C$17 -> 485.563 | AI16: =AI15*'Feuille de calculs'!$H$2*'Informations à fournir'!$C$17 -> 689.6625 | AJ16: =AJ15*'Feuille de calculs'!$H$2*'Informations à fournir'!$C$17 -> 689.6625 | AK16: =AK15*'Feuille de calculs'!$H$2*'Informations à fournir'!$C$17 -> 643.35 | AL16: =AL15*'Feuille de calculs'!$H$2*'Informations à fournir'!$C$17 -> 643.35 | AM16: =AM15*'Feuille de calculs'!$H$2*'Informations à fournir'!$C$17 -> 441.6 | AN16: =AN15*'Feuille de calculs'!$H$2*'Informations à fournir'!$C$17 -> 508.9 | AO16: =AO15*'Feuille de calculs'!$H$2*'Informations à fournir'!$C$17 -> 508.9 | AQ16: =AQ15*'Feuille de calculs'!$H$2*'Informations à fournir'!$C$17 -> 689.6625 | AR16: =AR15*'Feuille de calculs'!$H$2*'Informations à fournir'!$C$17 -> 689.6625 | AS16: =AS15*'Feuille de calculs'!$H$2*'Informations à fournir'!$C$17 -> 810.0225 | AT16: =AT15*'Feuille de calculs'!$H$2*'Informations à fournir'!$C$17 -> 810.0225 | AU16: =AU15*'Feuille de calculs'!$H$2*'Informations à fournir'!$C$17 -> 768.725 | AV16: =AV15*'Feuille de calculs'!$H$2*'Informations à fournir'!$C$17 -> 916.7475 | AW16: =AW15*'Feuille de calculs'!$H$2*'Informations à fournir'!$C$17 -> 916.7475
A17: Réduction structurelle nette | C17: =MIN(C16,C14) -> 462.6 | D17: =MIN(D16,D14) -> 462.6 | E17: 561.21 | F17: 561.21 | G17: 364.8 | H17: 424.9 | I17: 424.9 | K17: =MIN(K16,K14) -> 462.6 | L17: =MIN(L16,L14) -> 462.6 | M17: 561.21 | N17: 561.21 | O17: 364.8 | P17: 424.9 | Q17: 424.9 | S17: =MIN(S16,S14) -> 38.355 | T17: 38.355 | U17: 307.827 | V17: 307.827 | W17: 360.4426 | X17: 455.563 | Y17: 485.563 | AA17: =MIN(AA16,AA14) -> 38.355 | AB17: 38.355 | AC17: 307.827 | AD17: 307.827 | AE17: 360.4426 | AF17: 455.563 | AG17: 485.563 | AI17: =AI16 -> 689.6625 | AJ17: =AJ16 -> 689.6625 | AK17: 643.35 | AL17: 643.35 | AM17: 441.6 | AN17: 508.9 | AO17: 508.9 | AQ17: =AQ16 -> 689.6625 | AR17: =AR16 -> 689.6625 | AS17: 810.0225 | AT17: 810.0225 | AU17: 768.725 | AV17: 916.7475 | AW17: 916.7475
A18: Cotisations nettes à payer | C18: =C13-C17 -> 1481.4 | D18: 1481.4 | E18: 1238.79 | F18: 1238.79 | G18: 1135.2 | H18: 1075.1 | I18: 1075.1 | K18: =K13-K17 -> 1481.4 | L18: 1481.4 | M18: 1238.79 | N18: 1238.79 | O18: 1135.2 | P18: 1075.1 | Q18: 1075.1 | S18: =S13-S17 -> 1905.645 | T18: =T13-T17 -> 1905.645 | U18: 1636.173 | V18: 1636.173 | W18: 1583.5574 | X18: 1488.437 | Y18: 1458.437 | AA18: 1905.645 | AB18: =AB13-AB17 -> 1905.645 | AC18: 1636.173 | AD18: 1636.173 | AE18: 1583.5574 | AF18: 1488.437 | AG18: 1458.437 | AI18: =MAX(AI13-AI16,0) -> 1254.3375 | AJ18: =MAX(AJ13-AJ16,0) -> 1254.3375 | AK18: 1156.65 | AL18: 1156.65 | AM18: 1058.4 | AN18: 991.1 | AO18: 991.1 | AQ18: =MAX(AQ13-AQ16,0) -> 805.5375 | AR18: =MAX(AR13-AR16,0) -> 805.5375 | AS18: 548.9775 | AT18: 548.9775 | AU18: 424.075 | AV18: 276.0525 | AW18: 276.0525
A19: Taux de cotisations net | C19: =C18/C12 -> 0.2469 | D19: =D18/D12 -> 0.2469 | E19: 0.206465 | F19: 0.206465 | G19: 0.1892 | H19: 0.1791833333 | I19: 0.1791833333 | K19: =K18/K12 -> 0.2469 | L19: =L18/L12 -> 0.2469 | M19: 0.206465 | N19: 0.206465 | O19: 0.1892 | P19: 0.1791833333 | Q19: 0.1791833333 | S19: =S18/S12 -> 0.3176075 | T19: 0.3176075 | U19: 0.2726955 | V19: 0.2726955 | W19: 0.2639262333 | X19: 0.2480728333 | Y19: 0.2430728333 | AA19: =AA18/AA12 -> 0.3176075 | AB19: 0.3176075 | AC19: 0.2726955 | AD19: 0.2726955 | AE19: 0.2639262333 | AF19: 0.2480728333 | AG19: 0.2430728333 | AI19: =AI18/AI12 -> 0.20905625 | AJ19: =AJ18/AJ12 -> 0.20905625 | AK19: 0.192775 | AL19: 0.192775 | AM19: 0.1764 | AN19: 0.1651833333 | AO19: 0.1651833333 | AQ19: =AQ18/AQ12 -> 0.13425625 | AR19: 0.13425625 | AS19: 0.09149625 | AT19: 0.09149625 | AU19: 0.07067916667 | AV19: 0.04600875 | AW19: 0.04600875

Sheet Feuille de résultats
C2: Evolution de 2015 à 2020
D4: Sélectionnez votre catégorie: | F4: Catégorie 2 (Forfait Maribel Général)
D9: =F4 -> Catégorie 2 (Forfait Maribel Général)
D11: Situation en 2015 | E11: 1er janvier 2016 | F11: 1er avril 2016 | G11: 1er janvier 2017 | H11: 1er janvier 2018 | I11: 1er janvier 2019 | J11: 1er janvier 2020
B12: Cotisations* patronales trimestrielles nettes à payer (en €) | D12: =IF($D$9="Catégorie 1 (Avec Maribel Social)",'Feuille de calculs'!C18,IF($D$9="Catégorie 1 (Sans Maribel Social)",'Feuille de calculs'!K18,IF($D$9="Catégorie 2 (Forfait Maribel Général)",'Feuille de calculs'!S18,IF($D$9="Catégorie 2 (Forfait maribel CP 330 (sauf 330.03))",'Feuille de calculs'!AA18,IF('Feuille de résultats'!$D$9="Catégorie 3 (Travailleurs valides)",'Feuille de calculs'!AI18,'Feuille de calculs'!AQ18))))) -> 1905.645 | E12: =IF($D$9="Catégorie 1 (Avec Maribel Social)",'Feuille de calculs'!D18,IF($D$9="Catégorie 1 (Sans Maribel Social)",'Feuille de calculs'!L18,IF($D$9="Catégorie 2 (Forfait Maribel Général)",'Feuille de calculs'!T18,IF($D$9="Catégorie 2 (Forfait maribel CP 330 (sauf 330.03))",'Feuille de calculs'!AB18,IF('Feuille de résultats'!$D$9="Catégorie 3 (Travailleurs valides)",'Feuille de calculs'!AJ18,'Feuille de calculs'!AR18))))) -> 1905.645 | F12: =IF($D$9="Catégorie 1 (Avec Maribel Social)",'Feuille de calculs'!E18,IF($D$9="Catégorie 1 (Sans Maribel Social)",'Feuille de calculs'!M18,IF($D$9="Catégorie 2 (Forfait Maribel Général)",'Feuille de calculs'!U18,IF($D$9="Catégorie 2 (Forfait maribel CP 330 (sauf 330.03))",'Feuille de calculs'!AC18,IF('Feuille de résultats'!$D$9="Catégorie 3 (Travailleurs valides)",'Feuille de calculs'!AK18,'Feuille de calculs'!AS18))))) -> 1636.173 | G12: =IF($D$9="Catégorie 1 (Avec Maribel Social)",'Feuille de calculs'!F18,IF($D$9="Catégorie 1 (Sans Maribel Social)",'Feuille de calculs'!N18,IF($D$9="Catégorie 2 (Forfait Maribel Général)",'Feuille de calculs'!V18,IF($D$9="Catégorie 2 (Forfait maribel CP 330 (sauf 330.03))",'Feuille de calculs'!AD18,IF('Feuille de résultats'!$D$9="Catégorie 3 (Travailleurs valides)",'Feuille de calculs'!AL18,'Feuille de calculs'!AT18))))) -> 1636.173 | H12: =IF($D$9="Catégorie 1 (Avec Maribel Social)",'Feuille de calculs'!G18,IF($D$9="Catégorie 1 (Sans Maribel Social)",'Feuille de calculs'!O18,IF($D$9="Catégorie 2 (Forfait Maribel Général)",'Feuille de calculs'!W18,IF($D$9="Catégorie 2 (Forfait maribel CP 330 (sauf 330.03))",'Feuille de calculs'!AE18,IF('Feuille de résultats'!$D$9="Catégorie 3 (Travailleurs valides)",'Feuille de calculs'!AM18,'Feuille de calculs'!AU18))))) -> 1583.5574 | I12: =IF($D$9="Catégorie 1 (Avec Maribel Social)",'Feuille de calculs'!H18,IF($D$9="Catégorie 1 (Sans Maribel Social)",'Feuille de calculs'!P18,IF($D$9="Catégorie 2 (Forfait Maribel Général)",'Feuille de calculs'!X18,IF($D$9="Catégorie 2 (Forfait maribel CP 330 (sauf 330.03))",'Feuille de calculs'!AF18,IF('Feuille de résultats'!$D$9="Catégorie 3 (Travailleurs valides)",'Feuille de calculs'!AN18,'Feuille de calculs'!AV18))))) -> 1488.437 | J12: =IF($D$9="Catégorie 1 (Avec Maribel Social)",'Feuille de calculs'!I18,IF($D$9="Catégorie 1 (Sans Maribel Social)",'Feuille de calculs'!Q18,IF($D$9="Catégorie 2 (Forfait Maribel Général)",'Feuille de calculs'!Y18,IF($D$9="Catégorie 2 (Forfait maribel CP 330 (sauf 330.03))",'Feuille de calculs'!AG18,IF('Feuille de résultats'!$D$9="Catégorie 3 (Travailleurs valides)",'Feuille de calculs'!AO18,'Feuille de calculs'!AW18))))) -> 1458.437
B13: Cotisations* patronales trimestirelles nettes à payer (en %) | D13: =IF($D$9="Catégorie 1 (Avec Maribel Social)",'Feuille de calculs'!C19,IF($D$9="Catégorie 1 (Sans Maribel Social)",'Feuille de calculs'!K19,IF($D$9="Catégorie 2 (Forfait Maribel Général)",'Feuille de calculs'!S19,IF($D$9="Catégorie 2 (Forfait maribel CP 330 (sauf 330.03))",'Feuille de calculs'!AA19,IF('Feuille de résultats'!$D$9="Catégorie 3 (Travailleurs valides)",'Feuille de calculs'!AI19,'Feuille de calculs'!AQ19))))) -> 0.3176075 | E13: =IF($D$9="Catégorie 1 (Avec Maribel Social)",'Feuille de calculs'!D19,IF($D$9="Catégorie 1 (Sans Maribel Social)",'Feuille de calculs'!L19,IF($D$9="Catégorie 2 (Forfait Maribel Général)",'Feuille de calculs'!T19,IF($D$9="Catégorie 2 (Forfait maribel CP 330 (sauf 330.03))",'Feuille de calculs'!AB19,IF('Feuille de résultats'!$D$9="Catégorie 3 (Travailleurs valides)",'Feuille de calculs'!AJ19,'Feuille de calculs'!AR19))))) -> 0.3176075 | F13: =IF($D$9="Catégorie 1 (Avec Maribel Social)",'Feuille de calculs'!E19,IF($D$9="Catégorie 1 (Sans Maribel Social)",'Feuille de calculs'!M19,IF($D$9="Catégorie 2 (Forfait Maribel Général)",'Feuille de calculs'!U19,IF($D$9="Catégorie 2 (Forfait maribel CP 330 (sauf 330.03))",'Feuille de calculs'!AC19,IF('Feuille de résultats'!$D$9="Catégorie 3 (Travailleurs valides)",'Feuille de calculs'!AK19,'Feuille de calculs'!AS19))))) -> 0.2726955 | G13: =IF($D$9="Catégorie 1 (Avec Maribel Social)",'Feuille de calculs'!F19,IF($D$9="Catégorie 1 (Sans Maribel Social)",'Feuille de calculs'!N19,IF($D$9="Catégorie 2 (Forfait Maribel Général)",'Feuille de calculs'!V19,IF($D$9="Catégorie 2 (Forfait maribel CP 330 (sauf 330.03))",'Feuille de calculs'!AD19,IF('Feuille de résultats'!$D$9="Catégorie 3 (Travailleurs valides)",'Feuille de calculs'!AL19,'Feuille de calculs'!AT19))))) -> 0.2726955 | H13: =IF($D$9="Catégorie 1 (Avec Maribel Social)",'Feuille de calculs'!G19,IF($D$9="Catégorie 1 (Sans Maribel Social)",'Feuille de calculs'!O19,IF($D$9="Catégorie 2 (Forfait Maribel Général)",'Feuille de calculs'!W19,IF($D$9="Catégorie 2 (Forfait maribel CP 330 (sauf 330.03))",'Feuille de calculs'!AE19,IF('Feuille de résultats'!$D$9="Catégorie 3 (Travailleurs valides)",'Feuille de calculs'!AM19,'Feuille de calculs'!AU19))))) -> 0.2639262333 | I13: =IF($D$9="Catégorie 1 (Avec Maribel Social)",'Feuille de calculs'!H19,IF($D$9="Catégorie 1 (Sans Maribel Social)",'Feuille de calculs'!P19,IF($D$9="Catégorie 2 (Forfait Maribel Général)",'Feuille de calculs'!X19,IF($D$9="Catégorie 2 (Forfait maribel CP 330 (sauf 330.03))",'Feuille de calculs'!AF19,IF('Feuille de résultats'!$D$9="Catégorie 3 (Travailleurs valides)",'Feuille de calculs'!AN19,'Feuille de calculs'!AV19))))) -> 0.2480728333 | J13: =IF($D$9="Catégorie 1 (Avec Maribel Social)",'Feuille de calculs'!I19,IF($D$9="Catégorie 1 (Sans Maribel Social)",'Feuille de calculs'!Q19,IF($D$9="Catégorie 2 (Forfait Maribel Général)",'Feuille de calculs'!Y19,IF($D$9="Catégorie 2 (Forfait maribel CP 330 (sauf 330.03))",'Feuille de calculs'!AG19,IF('Feuille de résultats'!$D$9="Catégorie 3 (Travailleurs valides)",'Feuille de calculs'!AO19,'Feuille de calculs'!AW19))))) -> 0.2430728333
B14: Différentiel en € par rapport à la situation de 2015 | E14: =E12-$D$12 -> 0 | F14: =F12-$D$12 -> -269.472 | G14: -269.472 | H14: -322.0876 | I14: -417.208 | J14: =J12-$D$12 -> -447.208
B15: Différentiel en % par rapport à la situation de 2015 | E15: =(E12/$D$12)-1 -> 0 | F15: -0.1414072401 | G15: -0.1414072401 | H15: -0.1690176292 | I15: -0.2189326973 | J15: -0.2346753986
C16: * Les cotisations patronales reprises dans cette feuille de résultat se basent sur les données completées dans la feuille 'Informations à fournir'
C18: Remarque: Ce simulateur intègre dans ses feuilles de calcul, le facteur de multiplication fixe ß. Le facteur de multiplication fixe ß est calculé automatiquement sur base de la fraction de prestation. Celui-ci introduit une limite de prestations minimales permettant de bénéficier de la réduction structurelle (0,275) et permet de déroger à une réduction strictement proportionnelle en cas de prestations incomplètes.
C21: Pour plus d'explications et des exemples, nous vous renvoyons au dossier Unisoc relatif aux réductions de charges.
D22: Pour plus d'information:
